[Event "*** Titled Tuesday Blitz"]
[Site "Chess.com"]
[Date "2021.04.06"]
[Round "8"]
[White "VinzentSpitzl"]
[Black "maximnovik"]
[Result "1-0"]
[WhiteElo "2431"]
[BlackElo "2557"]
[TimeControl "180+1"]
[EndTime "11:26:03 PDT"]
[Termination "VinzentSpitzl won by checkmate"]

1. e4 {[%clk 0:03:00.9]} 1... c6 {[%clk 0:02:49.3]} 2. d4 {[%clk 0:02:58]} 2...
d5 {[%clk 0:02:49.7]} 3. Nd2 {[%clk 0:02:58.4]} 3... dxe4 {[%clk 0:02:49.5]} 4.
Nxe4 {[%clk 0:02:59.3]} 4... Bf5 {[%clk 0:02:49.6]} 5. Ng3 {[%clk 0:02:59.1]}
5... Bg6 {[%clk 0:02:50.2]} 6. Nh3 {[%clk 0:02:59.5]} 6... Nf6 {[%clk
0:02:47.2]} 7. Nf4 {[%clk 0:02:57]} 7... e5 {[%clk 0:02:47.4]} 8. dxe5 {[%clk
0:02:53.1]} 8... Qa5+ {[%clk 0:02:47]} 9. Bd2 {[%clk 0:02:50.4]} 9... Qxe5+
{[%clk 0:02:47.4]} 10. Be2 {[%clk 0:02:38.5]} 10... Nbd7 {[%clk 0:02:47.7]} 11.
O-O {[%clk 0:02:36.5]} 11... O-O-O {[%clk 0:02:47.6]} 12. Nd3 {[%clk 0:02:28.7]}
12... Qc7 {[%clk 0:02:46]} 13. a4 {[%clk 0:02:09.1]} 13... h5 {[%clk 0:02:42.1]}
14. h4 {[%clk 0:02:01.4]} 14... Bd6 {[%clk 0:02:40.9]} 15. a5 {[%clk 0:01:56.2]}
15... Bxg3 {[%clk 0:02:37.8]} 16. fxg3 {[%clk 0:01:56.3]} 16... Qxg3 {[%clk
0:02:36.6]} 17. Bf4 {[%clk 0:01:56.6]} 17... Qxh4 {[%clk 0:02:36.3]} 18. a6
{[%clk 0:01:53.6]} 18... Nd5 {[%clk 0:02:21]} 19. axb7+ {[%clk 0:01:44.4]} 19...
Kxb7 {[%clk 0:02:20.9]} 20. c4 {[%clk 0:01:30.7]} 20... Bxd3 {[%clk 0:02:14.9]}
21. cxd5 {[%clk 0:01:24.2]} 21... Bxe2 {[%clk 0:02:08.6]} 22. dxc6+ {[%clk
0:01:14.6]} 22... Kxc6 {[%clk 0:02:06.8]} 23. Qd6+ {[%clk 0:01:04.1]} 23... Kb7
{[%clk 0:02:02.3]} 24. Qc7+ {[%clk 0:01:03.5]} 24... Ka8 {[%clk 0:01:57.6]} 25.
Qxa7# {[%clk 0:01:03]} 1-0

[Event "*** Titled Tuesday Blitz"]
[Site "Chess.com"]
[Date "2021.04.06"]
[Round "8"]
[White "Omk124"]
[Black "erdni1993"]
[Result "0-1"]
[WhiteElo "2578"]
[BlackElo "2505"]
[TimeControl "180+1"]
[EndTime "11:26:06 PDT"]
[Termination "erdni1993 won by resignation"]

1. e4 {[%clk 0:03:00.9]} 1... c5 {[%clk 0:02:59.8]} 2. Nf3 {[%clk 0:03:01]} 2...
e6 {[%clk 0:03:00.7]} 3. d4 {[%clk 0:03:01]} 3... cxd4 {[%clk 0:03:01.6]} 4.
Nxd4 {[%clk 0:03:01.9]} 4... Nc6 {[%clk 0:03:01.8]} 5. Nc3 {[%clk 0:03:01.9]}
5... Qc7 {[%clk 0:03:02.4]} 6. g3 {[%clk 0:03:02.2]} 6... a6 {[%clk 0:02:59.5]}
7. Bg2 {[%clk 0:03:02.3]} 7... d6 {[%clk 0:02:59.5]} 8. O-O {[%clk 0:03:02.2]}
8... Bd7 {[%clk 0:03:00.1]} 9. h3 {[%clk 0:03:01.7]} 9... Be7 {[%clk 0:02:59.1]}
10. Nxc6 {[%clk 0:03:01.5]} 10... Bxc6 {[%clk 0:02:59]} 11. Be3 {[%clk
0:03:02.2]} 11... Nf6 {[%clk 0:02:58.8]} 12. a4 {[%clk 0:03:01.3]} 12... Nd7
{[%clk 0:02:58.3]} 13. Re1 {[%clk 0:03:00]} 13... O-O {[%clk 0:02:58.2]} 14. Qh5
{[%clk 0:02:46.9]} 14... f5 {[%clk 0:02:52.9]} 15. exf5 {[%clk 0:02:41.1]} 15...
Rxf5 {[%clk 0:02:52.7]} 16. Qe2 {[%clk 0:02:33.9]} 16... Bxg2 {[%clk 0:02:48.9]}
17. Kxg2 {[%clk 0:02:34.8]} 17... Raf8 {[%clk 0:02:48.1]} 18. f4 {[%clk
0:02:29.2]} 18... Qc6+ {[%clk 0:02:10]} 19. Kh2 {[%clk 0:02:28.7]} 19... e5
{[%clk 0:02:08.8]} 20. Rad1 {[%clk 0:02:26.8]} 20... exf4 {[%clk 0:02:04]} 21.
Bxf4 {[%clk 0:02:27.7]} 21... Ne5 {[%clk 0:02:04.2]} 22. Nd5 {[%clk 0:02:25.2]}
22... Bd8 {[%clk 0:01:44.8]} 23. b3 {[%clk 0:02:21.3]} 23... g5 {[%clk
0:01:43.6]} 24. Be3 {[%clk 0:02:11.7]} 24... Nf3+ {[%clk 0:01:41.6]} 25. Kg2
{[%clk 0:02:05.6]} 25... Nxe1+ {[%clk 0:01:40.7]} 26. Rxe1 {[%clk 0:02:02.8]}
26... Qxd5+ {[%clk 0:01:39.8]} 27. Kg1 {[%clk 0:02:03.7]} 27... Qe4 {[%clk
0:01:36.2]} 28. Qd2 {[%clk 0:02:03.7]} 28... Qf3 {[%clk 0:01:26.9]} 29. Qxd6
{[%clk 0:02:00.7]} 29... Qxe3+ {[%clk 0:01:13.5]} 0-1

[Event "*** Titled Tuesday Blitz"]
[Site "Chess.com"]
[Date "2021.04.06"]
[Round "8"]
[White "gumimis"]
[Black "rynos0411"]
[Result "0-1"]
[WhiteElo "2321"]
[BlackElo "2450"]
[TimeControl "180+1"]
[EndTime "11:26:17 PDT"]
[Termination "rynos0411 won by checkmate"]

1. e4 {[%clk 0:02:57.9]} 1... c6 {[%clk 0:02:59.5]} 2. d4 {[%clk 0:02:56.6]}
2... d5 {[%clk 0:03:00.4]} 3. f3 {[%clk 0:02:57.2]} 3... dxe4 {[%clk 0:02:59]}
4. fxe4 {[%clk 0:02:58.1]} 4... e5 {[%clk 0:02:59.4]} 5. Nf3 {[%clk 0:02:53]}
5... Bg4 {[%clk 0:02:59.3]} 6. Bc4 {[%clk 0:02:48.3]} 6... Nd7 {[%clk
0:02:57.3]} 7. O-O {[%clk 0:02:41.6]} 7... Ngf6 {[%clk 0:02:50.5]} 8. Qe1 {[%clk
0:02:10.6]} 8... Bd6 {[%clk 0:02:47.7]} 9. dxe5 {[%clk 0:01:58.4]} 9... Nxe5
{[%clk 0:02:43.4]} 10. Nxe5 {[%clk 0:01:58.6]} 10... Bxe5 {[%clk 0:02:44.3]} 11.
Nc3 {[%clk 0:01:55.5]} 11... O-O {[%clk 0:02:42.9]} 12. Bf4 {[%clk 0:01:43]}
12... Bxf4 {[%clk 0:02:30.7]} 13. Rxf4 {[%clk 0:01:41.7]} 13... Qd4+ {[%clk
0:02:31.2]} 14. Kh1 {[%clk 0:01:29.3]} 14... Qxc4 {[%clk 0:02:30.6]} 15. Rxf6
{[%clk 0:01:29.5]} 15... gxf6 {[%clk 0:02:17.1]} 16. Qg3 {[%clk 0:01:28.4]}
16... Qe6 {[%clk 0:02:17.6]} 17. h3 {[%clk 0:01:16.5]} 17... Kh8 {[%clk
0:02:16.7]} 18. hxg4 {[%clk 0:01:13.5]} 18... Rg8 {[%clk 0:02:16.6]} 19. Rf1
{[%clk 0:01:11.1]} 19... Rxg4 {[%clk 0:02:12.5]} 20. Qh3 {[%clk 0:01:09.3]}
20... Rag8 {[%clk 0:02:11.1]} 21. Rf5 {[%clk 0:01:09.3]} 21... R4g5 {[%clk
0:02:07.3]} 22. Kg1 {[%clk 0:00:57.3]} 22... Rxf5 {[%clk 0:02:04.4]} 23. exf5
{[%clk 0:00:56.2]} 23... Qe1+ {[%clk 0:02:04.2]} 24. Kh2 {[%clk 0:00:56.3]}
24... Rg5 {[%clk 0:01:59.9]} 25. Qh6 {[%clk 0:00:47.8]} 25... Qg3+ {[%clk
0:01:58.4]} 26. Kh1 {[%clk 0:00:47.1]} 26... Qxg2# {[%clk 0:01:59.3]} 0-1

[Event "*** Titled Tuesday Blitz"]
[Site "Chess.com"]
[Date "2021.04.06"]
[Round "8"]
[White "FMalexhdez"]
[Black "if_name_main_a"]
[Result "1-0"]
[WhiteElo "2202"]
[BlackElo "2324"]
[TimeControl "180+1"]
[EndTime "11:26:18 PDT"]
[Termination "FMalexhdez won by resignation"]

1. e4 {[%clk 0:03:00.1]} 1... e6 {[%clk 0:03:00.1]} 2. d4 {[%clk 0:02:58.4]}
2... d5 {[%clk 0:03:01]} 3. Nd2 {[%clk 0:02:55.4]} 3... c5 {[%clk 0:03:00.9]} 4.
Ngf3 {[%clk 0:02:54.3]} 4... cxd4 {[%clk 0:03:00.5]} 5. exd5 {[%clk 0:02:52.4]}
5... Qxd5 {[%clk 0:03:01.4]} 6. Bc4 {[%clk 0:02:52.3]} 6... Qd7 {[%clk
0:03:01.6]} 7. O-O {[%clk 0:02:48.2]} 7... Nc6 {[%clk 0:03:01.7]} 8. Nb3 {[%clk
0:02:48.1]} 8... a6 {[%clk 0:03:02.3]} 9. Nbxd4 {[%clk 0:02:47.5]} 9... Nxd4
{[%clk 0:03:03.2]} 10. Qxd4 {[%clk 0:02:42.7]} 10... Qxd4 {[%clk 0:03:02.7]} 11.
Nxd4 {[%clk 0:02:42.8]} 11... b5 {[%clk 0:02:58]} 12. Bb3 {[%clk 0:02:40.1]}
12... Bb7 {[%clk 0:02:58.4]} 13. a4 {[%clk 0:02:39]} 13... b4 {[%clk 0:02:58.6]}
14. a5 {[%clk 0:02:37.1]} 14... Bc5 {[%clk 0:02:57.2]} 15. Ba4+ {[%clk
0:02:36.9]} 15... Kd8 {[%clk 0:02:55.2]} 16. Nc6+ {[%clk 0:02:33]} 16... Kc7
{[%clk 0:02:55.5]} 17. Bf4+ {[%clk 0:02:31.4]} 17... Bd6 {[%clk 0:02:53.7]} 18.
Bxd6+ {[%clk 0:02:29.3]} 18... Kxd6 {[%clk 0:02:54.6]} 19. Rad1+ {[%clk
0:02:23.7]} 19... Kc5 {[%clk 0:02:54.3]} 20. Ne5 {[%clk 0:02:19.7]} 20... Bd5
{[%clk 0:02:33.4]} 21. Nxf7 {[%clk 0:02:14.7]} 21... Nf6 {[%clk 0:02:34]} 22.
Nxh8 {[%clk 0:02:13.2]} 22... Rxh8 {[%clk 0:02:34.9]} 23. Bb3 {[%clk 0:02:04.1]}
23... Bxb3 {[%clk 0:02:33.4]} 24. cxb3 {[%clk 0:02:04.2]} 24... Nd5 {[%clk
0:02:34]} 25. Rfe1 {[%clk 0:02:03.8]} 25... Re8 {[%clk 0:02:32.1]} 26. Re4
{[%clk 0:01:56.2]} 26... h6 {[%clk 0:02:28.4]} 27. Rc4+ {[%clk 0:01:55.8]} 27...
Kb5 {[%clk 0:02:28.6]} 28. Rdc1 {[%clk 0:01:50.4]} 28... Kxa5 {[%clk 0:02:28.1]}
29. Rc6 {[%clk 0:01:40.6]} 29... Rb8 {[%clk 0:02:20.8]} 30. Rxe6 {[%clk
0:01:30.6]} 30... Kb5 {[%clk 0:02:21]} 31. Rd6 {[%clk 0:01:20.1]} 31... Nf4
{[%clk 0:02:18.8]} 32. Rc4 {[%clk 0:01:13.3]} 32... Re8 {[%clk 0:02:15.1]} 33.
Kf1 {[%clk 0:01:06.6]} 33... g5 {[%clk 0:02:11.6]} 34. g3 {[%clk 0:01:04.3]}
34... Nh3 {[%clk 0:02:04.2]} 35. Rxh6 {[%clk 0:01:01.5]} 1-0

[Event "*** Titled Tuesday Blitz"]
[Site "Chess.com"]
[Date "2021.04.06"]
[Round "8"]
[White "attack2mateU"]
[Black "volkanyirik"]
[Result "1-0"]
[WhiteElo "2683"]
[BlackElo "2425"]
[TimeControl "180+1"]
[EndTime "11:26:22 PDT"]
[Termination "attack2mateU won by checkmate"]

1. e4 {[%clk 0:02:57.4]} 1... g6 {[%clk 0:02:59.7]} 2. d4 {[%clk 0:02:57.4]}
2... Bg7 {[%clk 0:03:00.6]} 3. Nc3 {[%clk 0:02:57.9]} 3... c5 {[%clk 0:02:58.6]}
4. d5 {[%clk 0:02:42.3]} 4... d6 {[%clk 0:02:57.1]} 5. Nf3 {[%clk 0:02:39.8]}
5... a6 {[%clk 0:02:56.3]} 6. a4 {[%clk 0:02:39.2]} 6... Bg4 {[%clk 0:02:56.7]}
7. h3 {[%clk 0:02:30.7]} 7... Bxf3 {[%clk 0:02:56.8]} 8. Qxf3 {[%clk 0:02:31.6]}
8... Nd7 {[%clk 0:02:57.1]} 9. Be2 {[%clk 0:02:25.9]} 9... Ngf6 {[%clk
0:02:56.1]} 10. O-O {[%clk 0:02:24.2]} 10... O-O {[%clk 0:02:56.4]} 11. Qg3
{[%clk 0:02:23.4]} 11... Ne8 {[%clk 0:02:55.1]} 12. Bg5 {[%clk 0:02:19.9]} 12...
h6 {[%clk 0:02:52.6]} 13. Bd2 {[%clk 0:02:19]} 13... Rb8 {[%clk 0:02:51.4]} 14.
f4 {[%clk 0:01:57.8]} 14... Nc7 {[%clk 0:02:47.6]} 15. e5 {[%clk 0:01:51.3]}
15... dxe5 {[%clk 0:02:45.1]} 16. f5 {[%clk 0:01:52]} 16... g5 {[%clk
0:02:44.8]} 17. h4 {[%clk 0:01:47.1]} 17... f6 {[%clk 0:02:45]} 18. Ne4 {[%clk
0:01:07.9]} 18... b5 {[%clk 0:02:32.6]} 19. axb5 {[%clk 0:01:05.6]} 19... Nxb5
{[%clk 0:02:32.1]} 20. Rxa6 {[%clk 0:00:56.3]} 20... Nd4 {[%clk 0:02:28.8]} 21.
Bc4 {[%clk 0:00:56.3]} 21... Rxb2 {[%clk 0:02:17.8]} 22. hxg5 {[%clk 0:00:53.5]}
22... hxg5 {[%clk 0:02:16.1]} 23. d6+ {[%clk 0:00:51.8]} 23... Kh7 {[%clk
0:02:10.2]} 24. dxe7 {[%clk 0:00:40.9]} 24... Qxe7 {[%clk 0:02:07.7]} 25. Nxg5+
{[%clk 0:00:40.7]} 25... fxg5 {[%clk 0:02:00.6]} 26. Qh3+ {[%clk 0:00:40.8]}
26... Bh6 {[%clk 0:02:00.7]} 27. Qxh6# {[%clk 0:00:41.7]} 1-0

[Event "*** Titled Tuesday Blitz"]
[Site "Chess.com"]
[Date "2021.04.06"]
[Round "8"]
[White "paulrusan"]
[Black "prachiti01"]
[Result "0-1"]
[WhiteElo "2268"]
[BlackElo "2173"]
[TimeControl "180+1"]
[EndTime "11:26:26 PDT"]
[Termination "prachiti01 won by checkmate"]

1. e4 {[%clk 0:02:59.7]} 1... e6 {[%clk 0:02:59]} 2. Nf3 {[%clk 0:02:59.1]} 2...
d5 {[%clk 0:02:58.5]} 3. e5 {[%clk 0:02:59.7]} 3... c5 {[%clk 0:02:56.4]} 4. b4
{[%clk 0:03:00.2]} 4... cxb4 {[%clk 0:02:54.2]} 5. a3 {[%clk 0:03:00.6]} 5...
bxa3 {[%clk 0:02:49.2]} 6. d4 {[%clk 0:03:00.2]} 6... Nc6 {[%clk 0:02:47.1]} 7.
c3 {[%clk 0:02:59.8]} 7... a2 {[%clk 0:02:40.8]} 8. Rxa2 {[%clk 0:02:59.3]} 8...
f6 {[%clk 0:02:40.3]} 9. Bd3 {[%clk 0:02:54.7]} 9... fxe5 {[%clk 0:02:23.1]} 10.
dxe5 {[%clk 0:02:53.8]} 10... g6 {[%clk 0:02:22.8]} 11. Bf4 {[%clk 0:02:46.3]}
11... Bg7 {[%clk 0:02:21.2]} 12. O-O {[%clk 0:02:37.1]} 12... Nge7 {[%clk
0:02:20.4]} 13. Nbd2 {[%clk 0:02:33]} 13... O-O {[%clk 0:02:18.3]} 14. Bg3
{[%clk 0:02:33.3]} 14... Nf5 {[%clk 0:02:17]} 15. Re1 {[%clk 0:02:33.3]} 15...
Nxg3 {[%clk 0:02:12.6]} 16. hxg3 {[%clk 0:02:33.2]} 16... Qc7 {[%clk 0:02:12.5]}
17. Qe2 {[%clk 0:02:32.9]} 17... Bd7 {[%clk 0:02:01.8]} 18. c4 {[%clk
0:02:32.5]} 18... d4 {[%clk 0:01:56.5]} 19. Qe4 {[%clk 0:02:04.5]} 19... Nb4
{[%clk 0:01:41.9]} 20. Rb2 {[%clk 0:01:55.1]} 20... Bc6 {[%clk 0:01:27.6]} 21.
Qh4 {[%clk 0:01:48.7]} 21... Nxd3 {[%clk 0:01:23.2]} 22. Ng5 {[%clk 0:01:48.4]}
22... h6 {[%clk 0:01:14.5]} 23. Nxe6 {[%clk 0:01:47.3]} 23... Qf7 {[%clk
0:01:02.7]} 24. Nxf8 {[%clk 0:01:46.8]} 24... Qxf2+ {[%clk 0:00:58.6]} 25. Kh2
{[%clk 0:01:45.3]} 25... Qxg2# {[%clk 0:00:58.4]} 0-1

[Event "*** Titled Tuesday Blitz"]
[Site "Chess.com"]
[Date "2021.04.06"]
[Round "8"]
[White "Harry_Rakkel"]
[Black "andrewtnb"]
[Result "1-0"]
[WhiteElo "2578"]
[BlackElo "2362"]
[TimeControl "180+1"]
[EndTime "11:26:35 PDT"]
[Termination "Harry_Rakkel won by resignation"]

1. d4 {[%clk 0:03:00.9]} 1... Nf6 {[%clk 0:02:59]} 2. c4 {[%clk 0:03:00.5]} 2...
e6 {[%clk 0:02:59.7]} 3. Nc3 {[%clk 0:03:00.2]} 3... Bb4 {[%clk 0:02:59.5]} 4.
Nf3 {[%clk 0:02:59.9]} 4... d5 {[%clk 0:02:57.3]} 5. cxd5 {[%clk 0:02:57.7]}
5... exd5 {[%clk 0:02:56.6]} 6. Bg5 {[%clk 0:02:57.5]} 6... Nbd7 {[%clk
0:02:53.3]} 7. e3 {[%clk 0:02:56.1]} 7... c5 {[%clk 0:02:53.2]} 8. dxc5 {[%clk
0:02:54.5]} 8... Qa5 {[%clk 0:02:52.5]} 9. Bxf6 {[%clk 0:02:50.6]} 9... Nxf6
{[%clk 0:02:50.9]} 10. Rc1 {[%clk 0:02:50.1]} 10... Bxc3+ {[%clk 0:02:27]} 11.
Rxc3 {[%clk 0:02:49]} 11... Ne4 {[%clk 0:02:26.2]} 12. Qxd5 {[%clk 0:02:42.4]}
12... Nxc3 {[%clk 0:02:24.8]} 13. Qe5+ {[%clk 0:02:42.1]} 13... Be6 {[%clk
0:02:23.8]} 14. bxc3 {[%clk 0:02:28.7]} 14... O-O {[%clk 0:02:16.7]} 15. Bd3
{[%clk 0:02:27.8]} 15... h6 {[%clk 0:01:57.6]} 16. O-O {[%clk 0:02:21.9]} 16...
Rac8 {[%clk 0:01:56.3]} 17. Nd4 {[%clk 0:02:16.1]} 17... Bxa2 {[%clk 0:01:02.5]}
18. Nf5 {[%clk 0:01:44.4]} 18... f6 {[%clk 0:00:56.6]} 19. Ne7+ {[%clk
0:01:43.9]} 19... Kh8 {[%clk 0:00:43.6]} 20. Qf5 {[%clk 0:01:43.7]} 1-0

[Event "*** Titled Tuesday Blitz"]
[Site "Chess.com"]
[Date "2021.04.06"]
[Round "8"]
[White "Michaelson_11"]
[Black "Larciano"]
[Result "1-0"]
[WhiteElo "2200"]
[BlackElo "1967"]
[TimeControl "180+1"]
[EndTime "11:26:46 PDT"]
[Termination "Michaelson_11 won on time"]

1. e4 {[%clk 0:03:00.9]} 1... e5 {[%clk 0:02:59.3]} 2. Nf3 {[%clk 0:03:00.4]}
2... Nc6 {[%clk 0:02:59.2]} 3. Nc3 {[%clk 0:03:00.4]} 3... Nf6 {[%clk
0:02:59.2]} 4. Bb5 {[%clk 0:03:01]} 4... d6 {[%clk 0:02:57.6]} 5. d4 {[%clk
0:03:00.5]} 5... exd4 {[%clk 0:02:57]} 6. Nxd4 {[%clk 0:03:01.4]} 6... Bd7
{[%clk 0:02:57.5]} 7. Bxc6 {[%clk 0:02:59.6]} 7... bxc6 {[%clk 0:02:57.3]} 8.
Qf3 {[%clk 0:03:00.5]} 8... Be7 {[%clk 0:02:57.6]} 9. e5 {[%clk 0:03:00.3]} 9...
dxe5 {[%clk 0:02:57.4]} 10. Nxc6 {[%clk 0:03:01]} 10... Bxc6 {[%clk 0:02:49]}
11. Qxc6+ {[%clk 0:03:01.9]} 11... Nd7 {[%clk 0:02:49.3]} 12. Be3 {[%clk
0:02:59]} 12... O-O {[%clk 0:02:48.3]} 13. O-O-O {[%clk 0:02:55.2]} 13... Bd6
{[%clk 0:02:45.1]} 14. Ne4 {[%clk 0:02:50.3]} 14... Nf6 {[%clk 0:02:29.8]} 15.
Bg5 {[%clk 0:02:37.4]} 15... Rb8 {[%clk 0:02:05.3]} 16. Bxf6 {[%clk 0:02:22.6]}
16... gxf6 {[%clk 0:02:05.4]} 17. Nxd6 {[%clk 0:02:19.8]} 17... Rb6 {[%clk
0:01:58.2]} 18. Nf5 {[%clk 0:02:07.7]} 18... Qxd1+ {[%clk 0:01:50.5]} 19. Rxd1
{[%clk 0:02:05.5]} 19... Rxc6 {[%clk 0:01:50.8]} 20. Ne7+ {[%clk 0:02:04.9]} 1-0

[Event "*** Titled Tuesday Blitz"]
[Site "Chess.com"]
[Date "2021.04.06"]
[Round "8"]
[White "ehrenfeld"]
[Black "TimofeevAr"]
[Result "0-1"]
[WhiteElo "2534"]
[BlackElo "2832"]
[TimeControl "180+1"]
[EndTime "11:26:50 PDT"]
[Termination "TimofeevAr won by resignation"]

1. e4 {[%clk 0:03:00.9]} 1... d5 {[%clk 0:02:59.5]} 2. exd5 {[%clk 0:03:00.5]}
2... Nf6 {[%clk 0:02:59.7]} 3. d4 {[%clk 0:02:59.9]} 3... Nxd5 {[%clk
0:02:59.7]} 4. Nf3 {[%clk 0:02:59.4]} 4... g6 {[%clk 0:02:59.7]} 5. Be2 {[%clk
0:02:58.7]} 5... Bg7 {[%clk 0:02:59.7]} 6. O-O {[%clk 0:02:58.3]} 6... O-O
{[%clk 0:02:59.8]} 7. c3 {[%clk 0:02:58.1]} 7... b6 {[%clk 0:02:58.9]} 8. Na3
{[%clk 0:02:56]} 8... Bb7 {[%clk 0:02:58.6]} 9. Nc4 {[%clk 0:02:55.2]} 9... Nd7
{[%clk 0:02:58.3]} 10. Re1 {[%clk 0:02:53.7]} 10... c5 {[%clk 0:02:57.9]} 11.
Bg5 {[%clk 0:02:50.9]} 11... h6 {[%clk 0:02:56.2]} 12. Bh4 {[%clk 0:02:50.4]}
12... g5 {[%clk 0:02:51.6]} 13. Bg3 {[%clk 0:02:49.7]} 13... Rc8 {[%clk
0:02:47.5]} 14. Bf1 {[%clk 0:02:48.9]} 14... Re8 {[%clk 0:02:35.7]} 15. h4
{[%clk 0:02:48]} 15... g4 {[%clk 0:02:34.1]} 16. Nfe5 {[%clk 0:02:47.1]} 16...
h5 {[%clk 0:02:33.7]} 17. Bd3 {[%clk 0:02:37]} 17... cxd4 {[%clk 0:02:32.3]} 18.
cxd4 {[%clk 0:02:36.7]} 18... Nb4 {[%clk 0:02:28.3]} 19. Bb1 {[%clk 0:02:20.2]}
19... Nxe5 {[%clk 0:02:27.3]} 20. Nxe5 {[%clk 0:02:19.2]} 20... Qd5 {[%clk
0:02:27]} 21. Be4 {[%clk 0:02:17.2]} 21... Qxe4 {[%clk 0:02:25.4]} 22. Rxe4
{[%clk 0:02:16]} 22... Bxe4 {[%clk 0:02:25.5]} 23. Qb3 {[%clk 0:02:03.3]} 23...
Bxe5 {[%clk 0:02:24.9]} 24. dxe5 {[%clk 0:01:51]} 24... Nc2 {[%clk 0:02:19.9]}
25. Rf1 {[%clk 0:01:49.5]} 25... e6 {[%clk 0:02:17.2]} 26. f3 {[%clk 0:01:44.8]}
26... gxf3 {[%clk 0:02:06.1]} 27. gxf3 {[%clk 0:01:43.9]} 27... Bg6 {[%clk
0:02:03.4]} 28. Bf2 {[%clk 0:00:43.2]} 28... Red8 {[%clk 0:02:00.1]} 29. Rc1
{[%clk 0:00:33.7]} 29... Rd2 {[%clk 0:01:58.8]} 30. Qb4 {[%clk 0:00:31.3]} 30...
Nxb4 {[%clk 0:01:56.4]} 0-1

[Event "*** Titled Tuesday Blitz"]
[Site "Chess.com"]
[Date "2021.04.06"]
[Round "8"]
[White "GMaka"]
[Black "maximych26"]
[Result "1-0"]
[WhiteElo "2467"]
[BlackElo "2272"]
[TimeControl "180+1"]
[EndTime "11:26:56 PDT"]
[Termination "GMaka won by checkmate"]

1. d4 {[%clk 0:03:00.9]} 1... Nf6 {[%clk 0:02:59.2]} 2. Bg5 {[%clk 0:03:00.9]}
2... Ne4 {[%clk 0:02:58.5]} 3. Bf4 {[%clk 0:03:00.6]} 3... c5 {[%clk 0:02:58.6]}
4. f3 {[%clk 0:03:00.2]} 4... Nf6 {[%clk 0:02:53.9]} 5. d5 {[%clk 0:02:59.9]}
5... d6 {[%clk 0:02:53.4]} 6. e4 {[%clk 0:03:00.1]} 6... Qb6 {[%clk 0:02:52.6]}
7. b3 {[%clk 0:02:53.4]} 7... g6 {[%clk 0:02:51]} 8. Bd2 {[%clk 0:02:51]} 8...
Bg7 {[%clk 0:02:50.8]} 9. Bc3 {[%clk 0:02:51.5]} 9... O-O {[%clk 0:02:50.5]} 10.
Nd2 {[%clk 0:02:51.9]} 10... Qc7 {[%clk 0:02:26.4]} 11. a4 {[%clk 0:02:51]}
11... Na6 {[%clk 0:02:24.7]} 12. Bxa6 {[%clk 0:02:49.3]} 12... bxa6 {[%clk
0:02:24.1]} 13. Nc4 {[%clk 0:02:50.2]} 13... Nd7 {[%clk 0:02:00.4]} 14. Bxg7
{[%clk 0:02:49.2]} 14... Kxg7 {[%clk 0:02:00.7]} 15. h4 {[%clk 0:02:47.6]} 15...
f5 {[%clk 0:01:53.8]} 16. h5 {[%clk 0:02:44.4]} 16... fxe4 {[%clk 0:01:53.7]}
17. fxe4 {[%clk 0:02:45.3]} 17... Nf6 {[%clk 0:01:50]} 18. hxg6 {[%clk
0:02:43.3]} 18... hxg6 {[%clk 0:01:49.7]} 19. Qd2 {[%clk 0:02:42.5]} 19... Ng4
{[%clk 0:01:36.7]} 20. Nf3 {[%clk 0:02:35.3]} 20... Bd7 {[%clk 0:01:31.5]} 21.
Qg5 {[%clk 0:02:34.1]} 21... Rf6 {[%clk 0:01:22.8]} 22. Qh4 {[%clk 0:02:27.1]}
22... Rg8 {[%clk 0:01:18.6]} 23. O-O-O {[%clk 0:02:17]} 23... Qb8 {[%clk
0:01:10.5]} 24. e5 {[%clk 0:02:05.8]} 24... dxe5 {[%clk 0:01:03.5]} 25. d6
{[%clk 0:01:46.4]} 25... exd6 {[%clk 0:00:56.5]} 26. Qh7+ {[%clk 0:01:45.6]}
26... Kf8 {[%clk 0:00:54.6]} 27. Qxd7 {[%clk 0:01:46.5]} 27... e4 {[%clk
0:00:53.5]} 28. Rh7 {[%clk 0:01:40.9]} 28... Qe8 {[%clk 0:00:48.2]} 29. Qxe8+
{[%clk 0:01:40]} 29... Kxe8 {[%clk 0:00:47.9]} 30. Nxd6+ {[%clk 0:01:40.9]}
30... Kf8 {[%clk 0:00:48.1]} 31. Nxe4 {[%clk 0:01:37.8]} 31... Rf4 {[%clk
0:00:47.7]} 32. Rd8# {[%clk 0:01:37.6]} 1-0

[Event "*** Titled Tuesday Blitz"]
[Site "Chess.com"]
[Date "2021.04.06"]
[Round "8"]
[White "BahadirOzen"]
[Black "Chigorinetz"]
[Result "0-1"]
[WhiteElo "2710"]
[BlackElo "2531"]
[TimeControl "180+1"]
[EndTime "11:26:59 PDT"]
[Termination "Chigorinetz won by resignation"]

1. g3 {[%clk 0:03:00.9]} 1... h5 {[%clk 0:02:59.4]} 2. Nf3 {[%clk 0:03:00.7]}
2... Nc6 {[%clk 0:02:57.8]} 3. d4 {[%clk 0:02:58.9]} 3... d5 {[%clk 0:02:57.5]}
4. c4 {[%clk 0:02:53.5]} 4... Bg4 {[%clk 0:02:55.6]} 5. Nc3 {[%clk 0:02:49.8]}
5... Bxf3 {[%clk 0:02:50.9]} 6. exf3 {[%clk 0:02:50.2]} 6... e6 {[%clk
0:02:51.6]} 7. cxd5 {[%clk 0:02:28.8]} 7... exd5 {[%clk 0:02:52.5]} 8. Qb3
{[%clk 0:02:27.8]} 8... Bb4 {[%clk 0:02:50.5]} 9. Bb5 {[%clk 0:02:25.6]} 9...
Qd6 {[%clk 0:02:37.6]} 10. Bf4 {[%clk 0:02:16.1]} 10... Qe6+ {[%clk 0:02:33.4]}
11. Kf1 {[%clk 0:02:15.6]} 11... Qh3+ {[%clk 0:02:31.1]} 12. Kg1 {[%clk
0:02:15.7]} 12... Bxc3 {[%clk 0:02:30.8]} 13. Bxc6+ {[%clk 0:02:13.8]} 13...
bxc6 {[%clk 0:02:29.7]} 14. Qb7 {[%clk 0:01:50.7]} 14... Rd8 {[%clk 0:02:08.8]}
15. Qxc6+ {[%clk 0:01:49.3]} 15... Kf8 {[%clk 0:02:06.2]} 16. Qxc3 {[%clk
0:01:33.7]} 16... Ne7 {[%clk 0:02:03.8]} 17. Re1 {[%clk 0:01:30.5]} 17... Ng6
{[%clk 0:01:44.5]} 18. Qxc7 {[%clk 0:01:28]} 18... Rc8 {[%clk 0:01:42.7]} 19.
Bd6+ {[%clk 0:00:56.6]} 19... Kg8 {[%clk 0:01:42.3]} 20. Qxa7 {[%clk 0:00:51.8]}
20... Rh6 {[%clk 0:01:38.2]} 21. a4 {[%clk 0:00:41.3]} 21... Nh4 {[%clk
0:01:22.3]} 22. gxh4 {[%clk 0:00:37.2]} 22... Rxd6 {[%clk 0:01:21.6]} 0-1